[Event "5th Baskent University Open 2022"]
[Site "Ankara"]
[Date "2022.07.03"]
[Round "2.5"]
[White "Ozkan, Taha"]
[Black "Caputcuoglu, Zeki Berke"]
[Result "0-1"]
[ECO "D77"]
[WhiteElo "2357"]
[BlackElo "2203"]
[Annotator "TA"]
[PlyCount "186"]
[EventDate "2022.07.02"]
[EventType "swiss"]
[EventCountry "TUR"]
[SourceTitle "playchess.com"]
[Source "ChessBase"]
[SourceQuality "1"]
[TimeControl "5400+30"]

{[%evp 11,186,13,46,-45,-25,-37,-36,-36,-34,-30,-39,-31,-35,-42,-56,-48,-70,-56,-36,-90,-99,-123,-107,-115,-91,-110,-94,-109,-100,-170,-164,-256,-256,-258,-261,-261,-261,-261,-261,-261,-261,-261,-261,-261,-261,-261,-261,-261,-261,-261,-261,-261,-259,-261,-250,-265,-263,-264,-256,-263,-258,-263,-260,-246,-236,-236,-236,-258,-236,-236,-236,-289,-214,-293,-281,-408,-216,-295,-291,-501,-435,-460,-399,-819,-812,-1254,-771,-779,-650,-1981,-3738,-6436,-4790,-1135,-441,-410,0,-354,-358,-258,-243,-479,-467,-708,-739,-1116,-1093,-12850,-12848,-29940,-12846,-12845,-12837,-12845,-12844,-12710,-12847,-2118,-2041,-29974,-29975,-29975,-29974,-29972,0,-29974,-29950,-29970,-12850,-12799,-11433,-8226,-6325,-5745,-5546,-4325,-2914,-29938,-29944,-12849,-210,-12845,-12849,-29948,-12845,-12664,-9086,-441,-151,-241,-151,-219,-151,-164,-151,-29972,-29973,-29972,-29973,-29975,-29976,-29976,-29977,-29977,-29978,-29980,-29980,-29980,-29980,-29980,-29981,-29981,-29982,-29981,-29982,-29984,-29985]} 1. d4 {[%emt 0:01:00]} Nf6 {[%emt 0:01:00]} 2. Nf3 {[%emt 0:00:00]} g6 {[%emt 0:00:30]} 3. g3 {[%emt 0:00:00]} Bg7 {[%emt 0:00:00]} 4. Bg2 {[%emt 0:00:30]} O-O {[%emt 0:00:00]} 5. O-O {[%emt 0:00:30]} d5 {[%emt 0:00:30]} 6. c4 {[%emt 0:00:00]} dxc4 {[%emt 0:00:30]} 7. Nbd2 {[%emt 0:01:00] D77: Fianchetto Grünfeld: 6 0-0: Replies other than 6...c6.} (7. Na3 $14) 7... b5 $15 {[%emt 0:05:30]} 8. Ne5 {[%emt 0:11:30]} c6 {[%emt 0:04:30]} 9. a4 {[%emt 0:04:30] Black is slightly better.} Nd5 $1 {[%emt 0:01:30]} ({Don't play} 9... Qxd4 10. Nxc6 Nxc6 11. axb5 $11) 10. Ne4 {[%emt 0:03:30] [#]} e6 $146 {[%emt 0:06:30]} ({Predecessor:} 10... f6 11. Nf3 a5 12. Nc5 Na6 13. Bd2 Nxc5 14. dxc5 f5 15. axb5 cxb5 16. Bxa5 Rxa5 17. Rxa5 Qxa5 18. Qxd5+ {0-1 (30) Zamar Kodelja,J (2208)-Soumya,S (2380) Trieste 2018}) 11. axb5 {[%emt 0:10:30]} cxb5 {[%emt 0:01:30]} 12. Nc3 $1 {[%emt 0:00:30]} Qb6 {[%emt 0:02:30]} 13. Nxd5 {[%emt 0:03:30]} exd5 {[%emt 0:01:30]} 14. Bxd5 {[%emt 0:00:30]} Bb7 {[%emt 0:00:00]} 15. Bxb7 {[%emt 0:01:30]} ({Better is} 15. e4 $1 $15) 15... Qxb7 $17 {[%emt 0:00:00]} 16. Nf3 {[%emt 0:11:30]} Qd5 {[%emt 0:03:30]} 17. e3 {[%emt 0:02:30]} Nc6 {[%emt 0:10:30]} 18. Ne1 {[%emt 0:02:30]} a5 {[%emt 0:12:30]} 19. Bd2 {[%emt 0:01:30]} Rfd8 {[%emt 0:04:30][%cal Oc6d4] Black is much more active.} 20. Nc2 {[%emt 0:06:30]} (20. Ng2 $17) 20... b4 $19 {[%emt 0:03:30]} 21. Ne1 {[%emt 0:01:30] [#]} (21. Qg4 {was the only defense.}) 21... Nxd4 $1 {[%emt 0:15:30][%mdl 512]} 22. exd4 {[%emt 0:00:30]} Qxd4 {[%emt 0:00:00]} 23. Nf3 {[%emt 0:00:30]} Qxb2 {[%emt 0:00:00]} 24. Qa4 {[%emt 0:07:30]} Qb3 {[%emt 0:04:30]} ({Avoid the trap} 24... Rxd2 $2 25. Nxd2 Qxd2 26. Rad1 $17) 25. Qxb3 {[%emt 0:01:30]} cxb3 {[%emt 0:00:00]} 26. Ra4 {[%emt 0:00:00]} Rd3 {[%emt 0:01:00]} 27. Kg2 {[%emt 0:01:00]} b2 {[%emt 0:01:30] And now ...Ra3 would win.} 28. Bxb4 {[%emt 0:01:30]} Rb3 {[%emt 0:00:30]} ({Don't go for} 28... Rb8 $2 29. Bd2 b1=Q 30. Rxb1 Rxb1 31. Rxa5 $19) 29. Rxa5 {[%emt 0:01:30]} Rxa5 {[%emt 0:00:30]} 30. Bxa5 {[%emt 0:00:30]} b1=Q {[%emt 0:00:30]} 31. Rxb1 {[%emt 0:00:30]} Rxb1 {[%emt 0:00:00][%mdl 4096] Endgame KRB-KBN} 32. Bd2 {[%emt 0:00:30]} f6 {[%emt 0:01:00]} 33. g4 {[%emt 0:01:30]} Rb5 {[%emt 0:00:30]} 34. Be3 {[%emt 0:01:30]} Kf7 {[%emt 0:00:30]} 35. h3 {[%emt 0:01:30]} Rd5 {[%emt 0:00:30]} 36. Ng1 {[%emt 0:00:30]} Bf8 {[%emt 0:00:00]} 37. Ne2 {[%emt 0:00:30]} Rd8 {[%emt 0:01:00]} 38. Kf3 {[%emt 0:00:30]} Rc8 {[%emt 0:01:30]} 39. Ng3 {[%emt 0:00:30]} Be7 {[%emt 0:00:30]} 40. h4 {[%emt 0:01:30]} Ke6 {[%emt 0:01:24]} 41. h5 {[%emt 0:02:30]} Bc5 {[%emt 0:01:44]} 42. Bd2 {[%emt 0:00:30]} Bd6 {[%emt 0:01:45]} 43. hxg6 {[%emt 0:00:30]} (43. Ne4 {was called for.}) 43... hxg6 {[%emt 0:00:30]} (43... Bxg3 $142 44. Kxg3 hxg6) 44. Ne4 {[%emt 0:02:21]} Be5 {[%emt 0:00:00]} 45. Ke2 $2 {[%emt 0:02:54]} (45. Be3) 45... Kd5 {[%emt 0:00:52]} 46. f3 {[%emt 0:01:50]} Rh8 {[%emt 0:02:54]} 47. Ke3 $2 {[%emt 0:10:09]} (47. Be3) 47... Kc4 {[%emt 0:04:25] Threatens to win with ...Bd4+.} 48. Be1 {[%emt 0:03:16]} Ra8 {[%emt 0:02:05] ...Ra3+ is the strong threat.} 49. Nd2+ {[%emt 0:01:39]} Kd5 {[%emt 0:00:01]} 50. Ke2 {[%emt 0:00:41]} Ra2 {[%emt 0:00:15]} 51. Kd3 {[%emt 0:00:31]} Ra3+ {[%emt 0:01:06]} 52. Ke2 {[%emt 0:00:01]} Bd4 {[%emt 0:00:13]} (52... Bc3 $142 53. Nb1 Ra2+ 54. Nd2 Bb4) 53. Nf1 {[%emt 0:01:00]} Be5 $2 {[%emt 0:02:04]} (53... Rb3 $19 {White must now prevent ...Be5.} 54. Ba5 Bc5) 54. Ne3+ $2 {[%emt 0:00:20][%mdl 8192]} (54. Nd2 $1 $11 {and White stays safe.} Bc3 55. Nb1 Ra2+ 56. Nd2) 54... Kc5 {[%emt 0:01:05]} 55. Nc2 {[%emt 0:00:10]} Rb3 {[%emt 0:00:20]} 56. Bd2 {[%emt 0:00:21] Inhibits Bf4.} (56. Bf2+ Kd5 57. Ne3+ Ke6 58. Be1) 56... Bd4 {[%emt 0:00:58] Strongly threatening ...Kc4.} 57. Ne1 {[%emt 0:01:14]} (57. Be1 $142 Bc3 58. Bf2+ Kd6 59. Bg1) 57... Kc4 {[%emt 0:01:07]} 58. Nc2 {[%emt 0:00:29]} Rb2 {[%emt 0:01:29]} 59. Ne3+ {[%emt 0:00:04]} Bxe3 {[%emt 0:01:11]} 60. Kxe3 {[%emt 0:00:01] KR-KB} Rb5 {[%emt 0:01:07]} (60... Rb6 $142 61. Ba5 Re6+ 62. Kf2 Kd3 63. Bd8 Rc6 64. Be7 Rb6 65. Bd8 Re6 66. Bc7 Re2+ 67. Kg3 Re8 68. Kf2 Rc8 69. Bd6 Rc2+ 70. Kg3 Ke2 71. Kg2 Rc3 72. f4 Rf3 73. Bc7 Ke3 74. f5 gxf5 75. gxf5 Rxf5 76. Bb6+ Ke4 77. Kh3 Rg5 78. Kh4 Rg8 79. Kh5 f5 80. Bc5 f4 81. Kh4 f3 82. Kh3 Kd3 83. Kh2 Ke2 84. Kh3 f2 85. Bxf2 Kxf2 86. Kh4 Ke3 87. Kh5 Kf4 88. Kh6 Kf5 89. Kh7 Rg6 90. Kh8 Kf6 91. Kh7 Kf7 92. Kh8 Rh6#) 61. Ke2 {[%emt 0:01:25]} Re5+ {[%emt 0:01:51]} 62. Be3 {[%emt 0:00:23]} Re8 {[%emt 0:01:20]} 63. Kf2 {[%emt 0:00:24]} Kd3 {[%emt 0:00:51]} 64. Bc5 {[%emt 0:00:04]} Re2+ {[%emt 0:00:33]} 65. Kf1 {[%emt 0:00:02]} Rc2 {[%emt 0:00:34]} 66. Bb6 {[%emt 0:00:17]} Rc6 {[%emt 0:00:25]} 67. Ba7 {[%emt 0:00:33]} Rc2 {[%emt 0:00:30]} 68. Bb6 $1 {[%emt 0:00:00]} Ra2 {[%emt 0:00:37] Against Ba7} 69. Bc5 {[%emt 0:00:07]} Kc4 {[%emt 0:00:09]} (69... f5 $142 70. Bb6 Rb2 71. Bc5 fxg4 72. fxg4 Ke4 73. g5 Kf3 74. Ke1 Rb5 75. Bd4 Rxg5 76. Bb6 Rd5 77. Bc7 g5 78. Bb8 g4 79. Bh2 g3 80. Bg1 Rd6 81. Ba7 g2 82. Bd4 Rd8 83. Bg1 Ra8 84. Kd2 Ra1 85. Bd4 g1=Q 86. Bxg1 Rxg1 87. Kd3 Rg4 88. Kd2 Ke4 89. Kc2 Kd4 90. Kd2 Rg2+ 91. Ke1 Ke3 92. Kd1 Rh2 93. Kc1 Kd3 94. Kb1 Kc3 95. Ka1 Kb3 96. Kb1 Rh1#) 70. Bb6 {[%emt 0:00:07]} Kd5 {[%emt 0:00:48]} 71. Bf2 {[%emt 0:01:01]} Ke5 {[%emt 0:00:59]} 72. Bg3+ {[%emt 0:00:16]} Ke6 {[%emt 0:00:44]} 73. Bf2 {[%emt 0:00:00]} f5 {[%emt 0:00:40]} 74. gxf5+ {[%emt 0:00:00]} gxf5 {[%emt 0:00:15]} 75. Bb6 {[%emt 0:00:18]} Ra4 $2 {[%emt 0:00:42]} (75... Rc2 76. Bd4 Kd5) 76. Ke2 $2 {[%emt 0:00:16]} (76. Bc7) 76... f4 {[%emt 0:00:05]} 77. Kf1 {[%emt 0:00:52]} Ra1+ {[%emt 0:00:30]} (77... Rc4 $142 78. Ke2 Kf5 79. Kf2 Rc8 80. Bd4 Rb8 81. Bg7 Rb7 82. Bd4 Rb5 83. Kg2 Kg5 84. Bh8 Rd5 85. Bc3 Rc5 86. Be1 Rc2+ 87. Bf2 Kf5 88. Kf1 Rc1+ 89. Kg2 Rc2 90. Kf1 Rc1+ 91. Kg2 Ke5 92. Bb6 Rc6 93. Ba7 Rc2+ 94. Kh3 Rb2 95. Bc5 Rb3 96. Kg4 Rb8 97. Kh3 Rg8 98. Bf2 Kd5 99. Kh4 Kc4 100. Kh5 Kd3 101. Bh4 Ke2 102. Be7 Kxf3 103. Bd6 Ke3 104. Kh4 f3 105. Bc5+ Ke2 106. Kh3 f2 107. Bxf2 Kxf2 108. Kh4 Kf3 109. Kh5 Kf4 110. Kh6 Kf5 111. Kh7 Rg6 112. Kh8 Kf6 113. Kh7 Kf7 114. Kh8 Rh6#) 78. Ke2 {[%emt 0:00:00]} Ra2+ {[%emt 0:00:00]} 79. Kf1 {[%emt 0:00:04]} Rd2 $2 {[%emt 0:00:54]} (79... Rc2 $19 {( -> ...Kd5)} 80. Ba5 Kf5) 80. Ke1 {[%emt 0:01:07]} (80. Bc7 $17 {was the only chance.}) 80... Rd5 {[%emt 0:00:32] aiming for ...Kd7.} 81. Kf1 {[%emt 0:01:55]} (81. Bc7 $17 {keeps fighting.}) 81... Kf5 {[%emt 0:00:09]} 82. Kg2 {[%emt 0:00:59]} Kg5 {[%emt 0:00:22]} 83. Kh3 $2 {[%emt 0:00:00] [#] Loses the game.} (83. Bc7 $17) 83... Rd2 {[%emt 0:00:52] Black mates.} 84. Bf2 {[%emt 0:00:43]} Kf5 {[%emt 0:00:49]} 85. Bb6 {[%emt 0:00:48]} Rd6 {[%emt 0:00:15]} 86. Bc5 {[%emt 0:02:19]} Rg6 {[%emt 0:00:30]} 87. Bf2 {[%emt 0:00:00]} Ke5 {[%emt 0:00:00]} 88. Kh4 {[%emt 0:00:56]} Kd5 {[%emt 0:00:42]} 89. Be1 {[%emt 0:00:31]} Rg8 90. Bd2 {[%emt 0:00:46]} Ke5 91. Be1 {[%emt 0:00:00]} Rg1 {[%emt 0:01:41]} 92. Bd2 {[%emt 0:00:43]} Rg3 {[%emt 0:00:31]} 93. Bc3+ {[%emt 0:00:32]} Kf5 {[%emt 0:00:06] Weighted Error Value: White=0.83/Black=0.35} 0-1

[Event "5th Baskent University Open 2022"]
[Site "Ankara"]
[Date "2022.07.03"]
[Round "2.6"]
[White "Makaraci, Tunahan"]
[Black "Koksal, Ege"]
[Result "1/2-1/2"]
[ECO "C54"]
[WhiteElo "2130"]
[BlackElo "2356"]
[Annotator "TA"]
[PlyCount "88"]
[EventDate "2022.07.02"]
[EventType "swiss"]
[EventCountry "TUR"]
[SourceTitle "playchess.com"]
[Source "ChessBase"]
[SourceQuality "1"]
[TimeControl "5400+30"]

{[%evp 17,88,7,17,11,40,35,58,0,0,-25,-20,-45,-40,-40,-44,-57,-50,-52,-62,-138,-138,-201,-186,-226,-138,-219,-60,-56,-56,-112,-73,-116,-116,-108,-109,-144,-184,-208,-75,-144,-145,-139,-125,-127,-111,-397,-94,-95,0,-391,-338,-452,-474,-420,-421,-401,-409,-404,-224,-304,-56,-56,-71,-64,-54,-65,0,0,0,0,0,0,0]} 1. e4 {[%emt 0:01:00]} e5 {[%emt 0:01:00]} 2. Nf3 {[%emt 0:00:30]} Nc6 {[%emt 0:00:00]} 3. Bc4 {[%emt 0:00:30]} Bc5 {[%emt 0:00:00]} 4. c3 {[%emt 0:00:00]} Nf6 {[%emt 0:02:30]} 5. d4 {[%emt 0:00:00]} exd4 {[%emt 0:00:30]} 6. e5 {[%emt 0:00:30]} d5 {[%emt 0:00:00]} 7. Bb5 {[%emt 0:00:30]} Ne4 {[%emt 0:00:00]} 8. cxd4 {[%emt 0:00:30]} Bb6 {[%emt 0:00:30]} 9. Nc3 {[%emt 0:00:00]} O-O {[%emt 0:00:00]} 10. Be3 {[%emt 0:00:00] C54: Giuoco Piano: 4 c3 Nf6, main lines with 5 d4 and 5 d3.} f6 {[%emt 0:02:00]} 11. Qb3 {[%emt 0:04:30][%csl LRd5,LRe4]} Nxc3 {[%emt 0:00:30]} 12. bxc3 {[%emt 0:00:30]} (12. Bxc6 $14 bxc6 13. Qxc3) 12... Bg4 $11 {[%emt 0:03:30] aiming for ...Bxf3.} 13. Bxc6 {[%emt 0:03:30] [#]} Bxf3 $146 {[%emt 0:03:30]} ({Predecessor:} 13... bxc6 14. exf6 Qxf6 15. Ne5 Bh5 16. O-O Rad8 17. a4 a5 18. h3 Kh8 19. Qc2 Rd6 {0-1 (54) Sanal,V (2581)-Boruchovsky,A (2541) Chess.com INT 2020}) 14. Bxb7 {[%emt 0:13:30]} Bxg2 {[%emt 0:00:30]} 15. Rg1 {[%emt 0:00:00]} Rb8 {[%emt 0:01:30] ...Be4 is the strong threat.} 16. Rxg2 {[%emt 0:01:00]} Rxb7 {[%emt 0:00:00]} 17. exf6 {[%emt 0:00:00]} Rxf6 {[%emt 0:01:00]} 18. O-O-O {[%emt 0:00:00]} (18. Bg5 $15 Re6+ 19. Kd2) 18... Rf7 $1 $17 {[%emt 0:08:30]} 19. Rg5 {[%emt 0:05:30]} (19. Qa4 $17) 19... c6 $19 {[%emt 0:05:30][%cal Ob6d4]} 20. Qa4 {[%emt 0:01:30]} Ba5 {[%emt 0:10:30][%cal Of7f2]} 21. Re5 {[%emt 0:09:30]} (21. Qxc6 $17 {might work better.} Rbc7 22. Qb5 (22. Qxd5 $2 Rxc3+ 23. Kb2 Qb8+ 24. Ka1 Rc2 $19) 22... Bxc3 23. Rxd5 Bxd4+ 24. Kb1) 21... Qb6 $2 {[%emt 0:22:30]} (21... Rb5 $19 {Strongly threatening ...Rfb7.} 22. Qc2 Rfb7) 22. Re8+ $1 $15 {[%emt 0:01:30]} Rf8 {[%emt 0:00:30]} 23. Rxf8+ {[%emt 0:00:30]} Kxf8 {[%emt 0:00:30][%csl Gb7][%cal Rb6b2]} 24. Qa3+ {[%emt 0:00:00]} Kf7 {[%emt 0:00:00]} 25. Kc2 {[%emt 0:00:00]} Qb5 $36 {[%emt 0:01:00][%mdl 2048] White is under strong pressure.} 26. Re1 {[%emt 0:04:30]} Bd8 $1 {[%emt 0:01:30]} 27. Bf4 {[%emt 0:03:30] [#]} Qc4 {[%emt 0:07:30]} (27... Be7 28. Bd6 (28. Qb3 $2 Qa6 $19) 28... Bh4 29. Bg3 $17) (27... c5 $1 $19 28. Qxc5 Qd7) 28. Bg3 {[%emt 0:06:30]} ({Better is} 28. Qd6 Qxa2+ 29. Kd3 Qc4+ 30. Kc2 Qa4+ 31. Kd3 (31. Kd2 $2 Rb2+ 32. Ke3 Qc2 $19) 31... Qc4+ 32. Kc2 Qa2+ 33. Kd3 Qa6+ 34. Kc2 Qa2+) 28... Be7 {[%emt 0:00:30]} 29. Bd6 {[%emt 0:01:30][%cal Rd6e7]} Bf6 {[%emt 0:04:30]} (29... Bxd6 $6 30. Qxd6 Qxa2+ 31. Kd3 Qc4+ 32. Kc2 $11) 30. Bc5 {[%emt 0:08:30]} Bh4 {[%emt 0:03:30]} 31. Bf8 $2 {[%emt 0:02:30][%mdl 8192]} (31. Qc1 $17 {only move.}) 31... Kg8 $2 {[%emt 0:01:30]} (31... h6 $19 {has better winning chances. Hoping for ...Kg6.} 32. Kd2 a5) 32. Re8 {[%emt 0:03:30][%cal Of8g7] [#]} Kf7 {[%emt 0:00:00][%mdl 8192]} (32... c5 $1 $17 {Threatens to win with ...Kf7.} 33. Bxc5+ Kf7) 33. Re1 $19 {[%emt 0:00:30]} h6 {[%emt 0:07:09]} (33... Kg8 34. Bb4 $17) 34. Qd6 {[%emt 0:01:30]} Qxa2+ {[%emt 0:00:05]} (34... Kg8 $2 35. Be7 Qxa2+ 36. Kd3 Qa6+ 37. Kc2 Qa4+ 38. Kd2 Rb2+ 39. Ke3 Bxe7 40. Qe6+ Kh8 41. Qc8+ Bd8 42. Qxd8+ Kh7 43. Qh4 $19) 35. Kd3 {[%emt 0:00:00] White wants to mate with Qe6+.} Qc4+ {[%emt 0:01:37]} 36. Kc2 {[%emt 0:00:00] Qe6+ would kill now.} Qb3+ {[%emt 0:00:30]} (36... Kg8 $2 37. Be7 Qa4+ 38. Kd2 Rb2+ 39. Ke3 Bxe7 40. Qe6+ Kh8 41. Qc8+ Bd8 42. Qxd8+ Kh7 43. Qh4 $19) 37. Kd3 {[%emt 0:00:30]} Qb5+ {[%emt 0:00:00]} (37... Kg8 $142 38. Qe6+ Rf7) 38. Kc2 {[%emt 0:00:00] Threatening mate with Qe6+.} (38. Ke3 $2 Be7 39. Qe5 Bxf8 $19) 38... Bf6 $2 {[%emt 0:09:14]} (38... Qa4+ $19 39. Kd3 Qc4+ 40. Kc2 Qa2+ 41. Kd3 Kg8) 39. Qe6+ $15 {[%emt 0:06:00]} Kg6 {[%emt 0:00:30] White must now prevent ...Qb2+.} 40. Bb4 {[%emt 0:02:30]} Rb8 {[%emt 0:01:05][%cal Oc6c5] And now ...c5! would win.} (40... a5 41. Rg1+ Kh7 42. Qf5+ Kh8 43. Qc8+ Kh7 44. Qf5+ Kh8 45. Qc8+ Kh7 46. Qf5+ $11) 41. Bd6 {[%emt 0:03:30] Against c5} (41. Ra1 Kh7 42. Qe3 Qb7 $17) 41... Rd8 {[%emt 0:02:42]} (41... Qa4+ $15 42. Kd3 (42. Kd2 $2 Rb2+ 43. Ke3 Qc2 $19) 42... Qc4+ 43. Kc2 Qb3+ 44. Kd3 (44. Kd2 Qa2+ 45. Kd3 Qc4+ 46. Kc2 Qa2+ 47. Kd3 Qc4+ $17) 44... Qc4+ 45. Kc2 Qa4+ 46. Kc1 (46. Kd2 $2 Rb2+ 47. Ke3 Qc2 $19) 46... Qa1+ 47. Kc2 (47. Kd2 Qb2+ 48. Kd3 Ra8 $17) 47... Qa2+ 48. Kd3 Ra8) 42. Be7 {[%emt 0:03:27] Intending Bxf6 and mate. The position is equal.} Qa4+ {[%emt 0:00:30]} 43. Kd3 {[%emt 0:00:00]} Qc4+ {[%emt 0:00:35]} 44. Kc2 $1 {[%emt 0:00:21] Dancing on a razor blade.} Qa4+ {[%emt 0:02:33] Whites escaped into a draw.  Weighted Error Value: White=0.30/Black=0.52} 1/2-1/2

[Event "5th Baskent University Open 2022"]
[Site "Ankara"]
[Date "2022.07.03"]
[Round "2.7"]
[White "Dedebas, Emre Emin"]
[Black "Aliyev, Elnur"]
[Result "1/2-1/2"]
[ECO "D11"]
[WhiteElo "2321"]
[BlackElo "2142"]
[Annotator "TA"]
[PlyCount "59"]
[EventDate "2022.07.02"]
[EventType "swiss"]
[EventCountry "TUR"]
[SourceTitle "playchess.com"]
[Source "ChessBase"]
[SourceQuality "1"]
[TimeControl "5400+30"]

{[%evp 14,59,0,0,0,0,22,17,20,14,22,24,21,24,45,-15,60,61,61,62,55,54,61,60,60,58,62,18,18,0,-2,0,55,48,48,31,28,35,36,0,0,0,25,0,51,0,0,0]} 1. d4 {[%emt 0:04:00] Wells,P} Nf6 {[%emt 0:01:00]} 2. Nf3 {[%emt 0:00:30]} d5 {[%emt 0:02:30]} 3. c4 {[%emt 0:00:30]} c6 {[%emt 0:03:30]} 4. Qc2 {[%emt 0:03:30]} g6 {[%emt 0:04:30]} 5. Bf4 {[%emt 0:01:30]} Bf5 {[%emt 0:06:30]} 6. Qb3 {[%emt 0:19:30]} Qb6 {[%emt 0:08:30]} 7. c5 {[%emt 0:07:30]} Qxb3 {[%emt 0:01:30]} 8. axb3 {[%emt 0:00:30]} Na6 {[%emt 0:07:30][%cal Bb8a6,Ba6b4,Bb4d3][%mdl 32] D11: Slav Defence: 3 Nf3 sidelines and 3...Nf6 4 e3 Bg4.} 9. Nc3 {[%emt 0:10:30]} Bg7 {[%emt 0:14:30]} (9... Nh5 $5 {[%cal Rh5f4]} 10. Bd2 Nb4 $11) 10. e3 {[%emt 0:25:30]} Nb4 {[%emt 0:02:30] [#] Threatens to win with ...Nc2+.} 11. Ra4 {[%emt 0:01:30]} Nd3+ {[%emt 0:07:30]} 12. Bxd3 {[%emt 0:01:30]} Bxd3 {[%emt 0:00:30]} 13. Kd2 {[%emt 0:02:37] [#]} Ba6 $146 {[%emt 0:10:30]} ({Predecessor:} 13... Bb5 14. Nxb5 cxb5 15. Ra5 a6 16. Rc1 Ne4+ 17. Ke2 Kd7 18. h3 Rhc8 19. Raa1 f6 {1-0 (47) Damljanovic,B (2559)-Markovic,M (2558) Belgrade 2000 CBM 080 [Wells,P]}) 14. h3 {[%emt 0:07:40]} (14. Be5 $14) 14... O-O {[%emt 0:09:49]} ({Better is} 14... Ne4+ $1 $11 15. Nxe4 dxe4) 15. Ne5 $14 {[%emt 0:01:29][%cal Oe5c6] [#] Strongly threatening Nxc6!} Bb5 {[%emt 0:01:28]} 16. Nxb5 {[%emt 0:00:50] White is more active.} cxb5 {[%emt 0:02:03]} 17. Ra5 {[%emt 0:00:55]} Ne4+ {[%emt 0:00:30]} 18. Ke2 {[%emt 0:01:41]} Bxe5 {[%emt 0:06:02]} 19. Bxe5 {[%emt 0:00:18]} a6 {[%emt 0:01:17]} 20. f3 {[%emt 0:07:18]} Ng5 {[%emt 0:00:23]} 21. Rc1 {[%emt 0:00:16]} Rfc8 {[%emt 0:01:17]} 22. Kd3 {[%emt 0:00:24]} f5 {[%emt 0:01:21]} (22... Ne6 $11) 23. h4 {[%emt 0:00:37]} Nf7 {[%emt 0:00:08][%cal Bg5f7,Bf7d8,Bd8c6][%mdl 32]} 24. Bf4 {[%emt 0:00:24]} Nd8 {[%emt 0:00:25]} 25. Raa1 {[%emt 0:00:31]} Nc6 {[%emt 0:01:00]} 26. h5 {[%emt 0:00:09]} Kf7 {[%emt 0:00:27]} 27. Rh1 {[%emt 0:00:06]} Rh8 {[%emt 0:04:07][%cal Og6g5]} (27... g5 $5 {[%cal Rg5f4]} 28. Bxg5 Rg8 $11) 28. Rh2 {[%emt 0:01:22]} (28. Be5 $5 Nxe5+ 29. dxe5 $11) 28... Rag8 {[%emt 0:00:44]} (28... Kf6 $11) 29. hxg6+ {[%emt 0:01:47]} (29. g4 $14) 29... hxg6 $11 {[%emt 0:00:30]} 30. Rah1 {[%emt 0:00:00] Weighted Error Value: White=0.15 (very precise) /Black=0.17 (very precise)} 1/2-1/2

[Event "5th Baskent University Open 2022"]
[Site "Ankara"]
[Date "2022.07.03"]
[Round "2.8"]
[White "Cansu, Batuhan"]
[Black "Gunduz, Umut Erdem"]
[Result "0-1"]
[ECO "C47"]
[WhiteElo "2083"]
[BlackElo "2368"]
[Annotator "TA"]
[PlyCount "96"]
[EventDate "2022.07.02"]
[EventType "swiss"]
[EventCountry "TUR"]
[SourceTitle "playchess.com"]
[Source "ChessBase"]
[SourceQuality "1"]
[TimeControl "5400+30"]

{[%evp 17,96,7,0,0,0,7,0,0,10,15,17,0,0,0,0,-20,13,0,0,-33,1,8,13,-5,0,0,11,0,0,-53,-11,-41,0,0,0,0,0,-6,0,0,0,0,0,0,0,0,0,0,0,0,0,-12,-8,-7,0,0,0,0,0,-9,0,0,0,0,0,0,0,-14,0,-46,-40,-59,-52,-129,-94,-537,-529,-508,-482,-461,-423]} 1. e4 {[%emt 0:02:00]} e5 {[%emt 0:02:00]} 2. Nf3 {[%emt 0:00:30]} Nc6 {[%emt 0:00:30]} 3. Nc3 {[%emt 0:00:00]} Nf6 {[%emt 0:01:30]} 4. d4 {[%emt 0:00:00]} exd4 {[%emt 0:00:30]} 5. Nxd4 {[%emt 0:00:30]} Bb4 {[%emt 0:00:30]} 6. Nxc6 {[%emt 0:00:00]} bxc6 {[%emt 0:00:00]} 7. Bd3 {[%emt 0:00:00]} d5 {[%emt 0:00:00]} 8. exd5 {[%emt 0:00:30]} O-O {[%emt 0:00:30] seems to push 8...cxd5 aside.} 9. O-O {[%emt 0:00:30]} cxd5 {[%emt 0:00:00]} 10. h3 {[%emt 0:00:00] C47: Scotch Four Knights and Four Knights with 4 g3.} c6 {[%emt 0:00:00]} 11. Qf3 {[%emt 0:00:00]} Bd6 {[%emt 0:03:30]} 12. Bf4 {[%emt 0:00:00] The position is equal.} Rb8 {[%emt 0:02:30]} 13. b3 {[%emt 0:00:00]} Be6 {[%emt 0:16:30]} 14. Rfd1 {[%emt 0:04:30]} Re8 {[%emt 0:01:30]} 15. Ne2 {[%emt 0:06:30]} c5 {[%emt 0:03:30] [#]} 16. g4 $146 {[%emt 0:21:30]} ({Predecessor:} 16. c3 a5 17. Rab1 h6 18. Bc2 Rb6 19. Be3 Bc8 20. Nf4 Bb7 21. Nh5 Bb8 22. Re1 Nxh5 23. Qxh5 {0-1 (35) Saravana,K (2346)-Debashis,D (2538) New Delhi 2019}) 16... Rb4 {[%emt 0:16:30]} 17. c3 {[%emt 0:03:30]} Rb6 {[%emt 0:03:30]} 18. Rd2 {[%emt 0:12:30]} Qc8 {[%emt 0:04:30]} 19. Bxd6 {[%emt 0:08:30]} Rxd6 {[%emt 0:00:30]} 20. Qg3 {[%emt 0:00:30]} Rb6 {[%emt 0:01:30]} 21. Rad1 {[%emt 0:03:30]} Bd7 {[%emt 0:07:30]} 22. Nf4 {[%emt 0:02:30] [#] And now g5 would win.} h6 {[%emt 0:06:30]} 23. Ng2 {[%emt 0:13:30]} (23. Bb1 $11) 23... a5 {[%emt 0:05:30]} 24. Ne3 {[%emt 0:01:30]} a4 {[%emt 0:01:30]} 25. Bc2 {[%emt 0:00:00][%csl LRa4,LRd5]} axb3 {[%emt 0:00:30]} 26. axb3 {[%emt 0:00:00]} Be6 {[%emt 0:01:30]} 27. Qf4 {[%emt 0:05:21]} Qa8 {[%emt 0:03:59]} 28. b4 {[%emt 0:08:06]} d4 {[%emt 0:13:23]} 29. cxd4 {[%emt 0:00:01]} Rxb4 {[%emt 0:00:39]} 30. Qg3 {[%emt 0:03:07]} cxd4 {[%emt 0:01:12]} 31. Rxd4 {[%emt 0:00:30]} Rxd4 {[%emt 0:00:30]} 32. Rxd4 {[%emt 0:00:00]} Qa1+ {[%emt 0:00:00]} 33. Rd1 {[%emt 0:00:00]} Qc3 {[%emt 0:00:00]} 34. Bb1 {[%emt 0:02:28]} Bb3 {[%emt 0:00:20]} 35. Rf1 {[%emt 0:00:43]} Bc4 {[%emt 0:01:04]} 36. Nxc4 {[%emt 0:01:12]} Qxc4 {[%emt 0:00:08]} 37. Qd3 {[%emt 0:01:55]} Qf4 {[%emt 0:00:02]} 38. Qg3 {[%emt 0:00:20]} Qb4 {[%emt 0:00:53]} 39. Qd3 {[%emt 0:00:33]} g6 {[%emt 0:00:01]} 40. Ba2 {[%emt 0:00:33] [#] Intending Qxg6+ and mate.} Kg7 {[%emt 0:01:01]} 41. Qb3 {[%emt 0:00:00]} Qe7 {[%emt 0:00:00] Active counter play!} 42. Qf3 {[%emt 0:00:00]} Qa7 {[%emt 0:00:28]} 43. Bb1 {[%emt 0:01:30]} (43. Bb3 $11 {feels stronger.}) 43... Re5 {[%emt 0:00:11]} 44. Kh2 {[%emt 0:01:44]} h5 {[%emt 0:00:22][%cal Bh6h5,Bh5h4][%mdl 32]} 45. Qg3 {[%emt 0:01:13]} ({Better is} 45. gxh5 $15 Rxh5 46. Rd1) 45... Qd4 {[%emt 0:02:13][%cal Rh5g4]} 46. f3 {[%emt 0:01:09][%mdl 8192]} (46. gxh5 $17 {is tougher.} Nxh5 47. Qf3) 46... Re2+ $19 {[%emt 0:00:30] Black is clearly winning.} 47. Kh1 {[%emt 0:00:00]} h4 {[%emt 0:00:47]} 48. Qg1 {[%emt 0:00:50]} Qd2 {[%emt 0:01:49] Weighted Error Value: White=0.31/Black=0.07 (flawless)} 0-1